bitfinex/quotes_ETHUSD_20250223
["timestamp","ask_amount","ask_price","bid_price","bid_amount"]
[1740326781963,1.61386,2794.7,2794.6,0.0518436]
[1740326782362,1.61386,2794.7,2794.6,2.9145036]
[1740326782563,1.61386,2794.7,2794.6,0.0518436]
[1740326783117,0.7582,2794.9,2794.3,2.86293]
[1740326783118,0.7582,2794.9,2794.5,2.86273]
[1740326783267,0.7582,2794.9,2794.6,0.0518436]
[1740326783616,1.281636,2794.9,2794.6,0.0518436]
[1740326783770,2.86268,2794.6,2793.9,3.13634]
[1740326783962,4.47641,2794.8,2794.0,3.0]
[1740326784322,1.61386,2794.8,2794.4,2.86286]
[1740326784482,2.52060504,2794.8,2794.4,2.86286]
[1740326784690,2.52060504,2794.8,2794.3,2.8629]
[1740326785077,2.52060504,2794.8,2794.4,2.91411169]
[1740326785281,5.38308504,2794.8,2794.4,0.05125169]
[1740326785586,2.52060504,2794.8,2794.4,0.05125169]
[1740326785776,2.86274,2794.6,2794.1,3.0]
[1740326785981,0.3278805,2794.7,2794.5,0.0512326]
[1740326786310,1.9417405,2794.7,2794.6,0.05126123]
[1740326786683,1.9417405,2794.7,2794.2,2.86299]
[1740326786922,1.9417405,2794.7,2794.3,0.05126123]
[1740326787226,1.61386,2794.7,2794.3,0.05126123]
[1740326787523,1.61386,2794.7,2794.6,2.86266]
[1740326787824,1.61386,2794.7,2794.4,0.05126123]
[1740326788022,1.61386,2794.7,2794.6,0.05125169]
[1740326788195,4.47642,2794.7,2794.1,5.86313]
[1740326788392,5.286124,2794.7,2794.6,0.05125169]
[1740326788598,2.423564,2794.7,2794.3,2.86287]
[1740326788809,1.61386,2794.7,2794.6,0.05125169]
[1740326789010,1.61386,2794.7,2794.1,2.86312]
[1740326789209,1.61386,2794.7,2794.2,2.86306]
[1740326789415,1.61386,2794.7,2794.2,2.91431169]
[1740326789741,1.61386,2794.7,2794.6,2.86266]
[1740326790240,1.61386,2794.7,2794.6,2.9138926]
[1740326791613,1.61386,2795.1,2794.7,2.86251]
[1740326791949,4.47602,2795.1,2794.6,0.0512326]
[1740326792158,5.3142719,2795.1,2794.5,2.86272]
[1740326792442,2.4521119,2795.1,2794.7,0.0512326]
[1740326792597,2.4521119,2795.1,2794.6,5.7252]
[1740326792801,2.4521119,2795.1,2794.8,0.0512326]
[1740326793019,2.4521119,2795.1,2794.7,2.86254]
[1740326793350,1.61386,2795.1,2794.8,2.86244]
[1740326793509,1.61386,2795.1,2794.8,2.9136726]
[1740326794018,1.61386,2795.1,2794.8,0.0512326]
[1740326794557,1.61386,2795.1,2794.9,2.9135826]
[1740326794702,1.61386,2795.1,2795.0,2.86225]
[1740326794896,0.7748,2795.5,2795.0,3.43983326]
[1740326795146,0.7748,2795.5,2794.8,2.8624]
[1740326795330,2.86186,2795.4,2795.1,0.05085081]
[1740326795516,0.7748,2795.5,2795.0,2.86225]
[1740326795718,0.7748,2795.5,2795.2,0.05085081]
[1740326795916,0.7748,2795.5,2794.9,2.86233]
[1740326796118,1.6573597,2795.5,2795.3,0.05085081]
[1740326796302,4.5190997,2795.5,2794.9,2.86233]
[1740326796512,4.5190997,2795.5,2795.4,0.05085081]
[1740326796706,4.5190997,2795.5,2794.7,5.86253]
[1740326796707,2.862,2795.3,2794.7,5.86253]
[1740326797016,2.86243,2794.9,2794.3,2.86287]
[1740326797240,1.61386,2794.9,2794.3,0.367167]
[1740326797411,1.61386,2794.9,2794.8,2.86245]
[1740326798045,1.61386,2794.9,2794.5,2.8627]
[1740326798224,0.7748,2794.6,2794.1,2.86311]
[1740326798615,0.7748,2794.6,2794.3,2.8629]
[1740326798922,0.7748,2794.6,2794.2,3.0]
[1740326799508,3.63746,2794.6,2794.2,3.0]
[1740326799947,0.7748,2794.6,2794.2,5.86305]
[1740326800255,0.7748,2794.6,2794.3,0.05046903]
[1740326800411,1.61386,2794.9,2794.6,2.86266]
[1740326800750,4.47621,2794.9,2794.7,0.050679]
[1740326800955,6.27862493,2794.8,2794.7,0.050679]
[1740326801155,6.27862493,2794.8,2794.3,3.0]
[1740326801339,7.06787342,2794.8,2794.7,0.050679]
[1740326801556,0.7748,2794.3,2793.7,2.86357]
[1740326801712,6.1648,2794.3,2793.7,3.0]
[1740326802061,2.86311,2794.2,2793.8,0.05069809]
[1740326802354,2.86311,2794.2,2793.7,5.86357]
[1740326802355,6.1648,2794.3,2793.7,5.86357]
[1740326802549,6.1648,2794.3,2793.9,0.05069809]
[1740326802758,6.1648,2794.3,2793.9,2.86334]
[1740326802953,6.1648,2794.3,2794.0,0.05069809]
[1740326804042,6.1648,2794.3,2794.1,0.05069809]
[1740326804247,6.1648,2794.3,2793.9,2.86329]
[1740326804543,6.1648,2794.3,2794.0,2.91396809]
[1740326804737,6.1648,2794.3,2794.0,0.05069809]
[1740326804946,6.1648,2794.3,2794.0,2.91396809]
[1740326805241,6.1648,2794.3,2794.2,2.86307]
[1740326805242,5.39,2794.3,2794.2,2.86307]
[1740326805423,5.39,2794.3,2794.1,2.8631]
[1740326805625,5.39,2794.3,2794.2,0.05153806]
[1740326806571,5.39,2794.5,2794.2,0.05153806]
[1740326807855,8.25277,2794.5,2794.2,0.05153806]
[1740326808167,5.39,2794.5,2794.0,2.86326]
[1740326808382,2.86286,2794.4,2794.3,0.05153806]
[1740326808524,6.577462,2794.4,2793.8,3.0]
[1740326808730,5.39,2794.4,2794.3,0.05147124]
[1740326808932,5.39,2794.4,2793.9,2.86331]
[1740326809280,8.25286,2794.4,2794.0,0.04963059]
[1740326809776,8.25286,2794.4,2793.5,2.86374]
[1740326809777,0.759,2794.1,2793.5,2.86374]
[1740326809946,0.759,2794.1,2793.6,3.0]
[1740326810149,0.759,2794.1,2793.7,2.86357]
[1740326810329,0.759,2794.1,2793.4,2.86389]
[1740326810534,2.86336,2794.0,2793.5,3.0]
[1740326810725,2.86343,2793.9,2793.5,3.0]
[1740326810943,2.86343,2793.9,2793.4,2.86389]
[1740326810944,2.86343,2793.9,2793.4,3.0]
[1740326811345,0.759,2794.1,2793.6,2.86367]
[1740326812076,2.86339,2793.9,2793.4,0.968588]
[1740326812285,5.39,2793.9,2793.1,5.86415]
[1740326812693,0.7749,2793.7,2793.1,2.86415]
[1740326812993,5.39,2793.6,2793.1,2.86415]
[1740326813197,2.86388,2793.5,2792.9,0.57818042]
[1740326813351,2.86407,2793.3,2792.7,3.6725]
[1740326813547,0.8118,2793.2,2792.7,3.6725]
[1740326813750,0.8118,2793.2,2792.7,0.8079]
[1740326814082,6.2018,2793.2,2792.5,2.8648]
[1740326814396,3.67606,2793.1,2792.6,3.0]
[1740326814599,2.86433,2793.0,2792.4,2.86491]
[1740326814878,2.86433,2793.0,2792.4,3.151401]
[1740326815099,2.86433,2793.0,2792.5,0.04785807]
[1740326815254,8.25433,2793.0,2792.5,0.04785807]
[1740326815889,2.86447,2792.9,2792.5,0.04785807]
[1740326816052,2.86447,2792.9,2792.2,5.73013]
[1740326816249,5.39,2792.9,2792.3,0.04785807]
[1740326816459,2.86456,2792.8,2792.3,0.04785807]
[1740326816901,2.86456,2792.8,2792.3,3.04785807]
[1740326817208,2.86471,2792.6,2792.3,0.04785807]
[1740326817375,2.86463,2792.7,2792.3,0.04785807]
[1740326817704,0.8118,2792.6,2792.4,0.04785807]
[1740326818007,0.8118,2792.6,2792.2,2.86509]
[1740326818164,0.8118,2792.6,2792.5,0.04785807]
[1740326818360,0.8118,2792.6,2792.2,2.86509]
[1740326818563,0.8118,2792.6,2792.5,0.04785807]
[1740326818798,0.8118,2792.6,2792.2,3.814803]
[1740326819030,0.8118,2792.6,2792.5,0.04906153]
[1740326819528,0.8118,2792.6,2792.2,2.86512]
[1740326819699,0.8118,2792.6,2792.5,0.04906153]
[1740326820036,0.8118,2792.6,2792.2,2.86507]
[1740326820217,5.39,2792.8,2792.5,0.04906153]
[1740326820406,5.39,2792.8,2792.3,3.0]
[1740326820728,5.39,2792.8,2792.3,5.86493]
[1740326820912,5.39,2792.8,2792.4,0.04906153]
[1740326822631,8.25459,2792.8,2792.4,0.04906153]
[1740326822801,5.39,2792.8,2792.4,2.91396153]
[1740326822988,8.25457,2792.8,2792.2,6.228297]
[1740326823189,8.25457,2792.8,2792.5,0.04906153]
[1740326823534,8.25452,2792.8,2792.6,0.04906153]
[1740326823924,8.25452,2792.8,2792.2,5.86511]
[1740326824102,5.39,2792.8,2792.7,2.91367153]
[1740326824302,6.2018,2792.9,2792.7,2.86461]
[1740326824503,6.2018,2792.9,2792.8,0.05046561]
[1740326824717,6.2018,2792.9,2792.7,2.86461]
[1740326824915,6.2018,2792.9,2792.8,0.05046561]
[1740326825416,6.2018,2792.9,2792.6,2.86463]
[1740326825602,6.2018,2792.9,2792.8,0.05036049]
[1740326826125,5.39,2792.9,2792.8,2.8645]
[1740326826292,5.39,2792.9,2792.8,3.48776449]
[1740326826688,0.8146,2793.5,2793.2,2.86409]
[1740326826689,5.39,2793.5,2793.2,2.86409]
[1740326826922,0.8146,2793.8,2793.1,0.7546]
[1740326827133,2.86366,2793.7,2793.3,0.05040827]
[1740326827320,2.86366,2793.7,2793.2,0.05015028]
[1740326827513,0.63196349,2793.7,2793.2,0.05015028]
[1740326827923,3.49561349,2793.7,2793.2,0.05015028]
[1740326828233,0.63196349,2793.7,2793.2,0.05015028]
[1740326828440,0.63196349,2793.7,2793.2,2.91416028]
[1740326828747,0.8146,2793.8,2793.3,2.91411028]
[1740326829242,0.8146,2793.8,2793.7,2.86358]
[1740326829394,5.39,2794.0,2793.7,2.86358]
[1740326829600,5.39,2794.0,2793.9,2.86338]
[1740326829909,5.39,2794.1,2794.0,2.86327]
[1740326830303,5.39,2794.1,2794.0,3.31037122]
[1740326832117,5.39,2794.9,2794.8,2.86245]
[1740326832356,5.39,2795.0,2794.8,0.04876526]
[1740326832517,5.50372493,2794.9,2794.8,0.04876526]
[1740326832718,5.50372493,2794.9,2794.0,2.86322]
[1740326832719,2.86266,2794.6,2794.0,2.86322]
[1740326832925,2.86266,2794.6,2794.1,0.04868888]
[1740326832926,8.25266,2794.6,2794.1,0.04868888]
[1740326833510,10.89403493,2794.6,2794.1,0.04868888]
[1740326833705,2.86277,2794.5,2794.1,0.04868888]
[1740326833941,0.7822,2794.9,2791.1,5.15004951]
[1740326833942,3.42357493,2794.3,2793.4,3.68552]
[1740326834142,6.28661493,2794.3,2794.2,0.04859342]
[1740326834462,2.86314,2794.2,2793.5,5.86378]
[1740326834751,8.25314,2794.2,2793.5,5.86378]
[1740326834950,5.39,2794.2,2794.1,2.86317]
[1740326835150,5.39,2794.5,2794.2,2.86303]
[1740326835460,5.39,2794.5,2794.3,2.86294]
[1740326835961,0.7822,2794.6,2794.3,2.86294]
[1740326836254,2.86293,2794.4,2793.3,0.273]
[1740326836405,0.7822,2794.0,2793.5,2.8637]
[1740326836936,0.7822,2794.0,2793.5,2.86378]
[1740326837752,6.1722,2794.0,2793.5,2.86378]
[1740326841038,3.30956673,2793.9,2792.8,1.394604]
[1740326841245,0.7822,2793.6,2793.0,2.86424]
[1740326841539,6.1722,2793.6,2793.1,3.0]
[1740326841731,2.86379,2793.5,2793.0,2.86423]
[1740326841931,2.86395,2793.4,2792.8,2.86447]
[1740326842136,2.86395,2793.4,2792.8,3.437347]
[1740326842445,2.86399,2793.3,2792.8,3.437347]
[1740326842617,8.25399,2793.3,2792.8,0.572917]
[1740326842825,3.64646,2793.1,2792.5,2.86475]
[1740326843876,0.7822,2793.1,2792.7,2.86455]
[1740326844223,0.7822,2793.1,2792.2,2.86512]
[1740326844437,0.7822,2793.1,2792.1,0.8217]
[1740326844438,5.39,2793.3,2792.8,2.91379784]
[1740326844639,5.39,2793.3,2792.8,2.86445]
[1740326845043,5.39,2793.3,2792.4,0.7509]
[1740326845044,5.39,2793.3,2793.0,2.86427]
[1740326845507,5.39,2793.3,2793.2,2.86409]
[1740326845711,5.39,2793.3,2793.1,0.04777514]
[1740326845924,5.39,2793.3,2793.2,0.04781336]
[1740326846217,5.39,2793.3,2793.0,2.86429]
[1740326846380,5.39,2793.3,2793.2,0.04781336]
[1740326846575,5.39,2793.3,2793.0,2.86429]
[1740326846913,5.39,2793.3,2793.2,0.04781336]
[1740326847065,5.39,2793.3,2793.0,2.86429]
[1740326847265,5.39,2793.3,2793.2,0.04781336]
[1740326847490,5.39,2793.3,2793.0,2.86429]
[1740326847678,5.39,2793.3,2793.2,0.04781336]
[1740326848009,5.39,2793.4,2793.3,2.86399]
[1740326848712,5.39,2793.4,2793.3,2.91160272]
[1740326851887,5.39,2793.4,2793.3,0.04761272]
[1740326852407,5.39,2793.4,2793.3,2.91160272]
[1740326852613,5.39,2793.4,2793.3,0.04761272]
[1740326852839,5.39,2793.4,2793.2,2.86407]
[1740326853115,5.39,2793.4,2793.3,2.91152629]
[1740326853419,0.7527,2794.0,2793.3,0.92509592]
[1740326853574,6.1427,2794.0,2793.6,2.86368]
[1740326853780,6.1427,2794.0,2793.8,2.86346]
[1740326854104,0.7527,2794.3,2794.0,2.86321]
[1740326854637,0.7527,2794.3,2794.1,0.04791834]
[1740326855185,5.39,2794.5,2794.1,0.04791834]
[1740326855394,5.39,2794.5,2794.2,2.86302]
[1740326855698,5.39,2794.5,2794.2,2.90862765]
[1740326856739,5.39,2794.5,2794.2,0.04560765]
[1740326858396,5.39,2794.6,2794.4,2.86286]
[1740326859009,5.39,2794.6,2794.5,2.90836765]
[1740326859415,6.1427,2794.9,2794.5,0.04560765]
[1740326860092,5.39,2794.9,2794.5,2.90828765]
[1740326860426,5.39,2794.9,2794.6,2.86262]
[1740326860809,5.39,2794.9,2794.6,2.8626]
[1740326861010,5.39,2794.9,2794.8,2.86245]
[1740326861216,5.39,2795.2,2794.8,2.86245]
[1740326861515,5.39,2795.2,2794.8,2.90761848]
[1740326862037,5.39,2795.2,2795.0,2.86219]
[1740326862212,5.39,2795.2,2795.1,2.86215]
[1740326862417,5.39,2795.5,2795.2,2.86203]
[1740326862796,5.39,2795.5,2795.3,0.04374578]
[1740326862995,5.39,2795.5,2795.2,2.86203]
[1740326863322,5.39,2795.5,2795.4,0.04374578]
[1740326863531,5.39,2795.5,2795.2,2.86203]
[1740326863822,5.39,2795.5,2795.2,2.86198]
[1740326864119,5.39,2795.5,2795.3,2.90568578]
[1740326864338,5.39,2795.5,2795.3,0.04374578]
[1740326864691,5.39,2795.5,2795.2,2.86198]
[1740326864889,5.39,2795.5,2795.4,0.04374578]
[1740326865138,5.39,2795.5,2795.2,2.86198]
[1740326865290,5.39,2795.5,2795.4,0.04374578]
[1740326865491,5.39,2795.5,2795.0,2.86222]
[1740326865719,5.39,2795.5,2795.4,0.04374578]
[1740326866204,5.39,2795.5,2795.2,2.86203]
[1740326866385,5.39,2795.5,2795.4,0.04374578]
[1740326866590,5.39,2795.5,2795.2,2.86203]
[1740326866810,5.39,2795.5,2795.4,0.04374578]
[1740326867030,5.39,2795.5,2795.1,2.8621]
[1740326867233,5.39,2795.5,2795.4,0.04374578]
[1740326867524,5.39,2795.5,2795.1,2.8621]
[1740326867716,5.39,2795.5,2795.4,0.04374578]
[1740326867918,5.39,2795.5,2795.2,2.86202]
[1740326868118,5.39,2795.5,2795.4,2.90558578]
[1740326868323,5.39,2795.5,2795.2,3.4709112]
[1740326868324,5.39,2795.7,2795.5,2.8617]
[1740326868831,5.39,2795.7,2795.6,0.04349768]
[1740326869006,5.39,2795.7,2795.3,3.6559]
[1740326869322,5.39,2795.7,2795.6,0.04349768]
[1740326869832,5.39,2795.7,2795.1,2.86207]
[1740326869993,2.86184,2795.4,2794.8,2.86236]
[1740326870192,3.62157,2795.6,2795.0,2.86224]
[1740326870393,3.62157,2795.6,2794.9,5.86226]
[1740326870622,0.7599,2795.6,2794.9,3.0]
[1740326870822,3.62154,2795.6,2795.1,2.86208]
[1740326871128,0.7599,2795.6,2795.1,2.86208]
[1740326871320,3.62156,2795.6,2795.1,2.86208]
[1740326871639,0.7599,2795.6,2795.1,2.86208]
[1740326871820,5.39,2795.5,2795.1,2.86208]
[1740326872516,5.39,2795.5,2794.9,3.37842]
[1740326872722,8.25175,2795.5,2794.9,6.24071]
[1740326872924,5.39,2795.5,2794.9,6.24071]
[1740326873427,8.25177,2795.5,2794.9,6.2407]
[1740326873630,8.25177,2795.5,2795.0,2.86222]
[1740326874013,8.25177,2795.5,2794.9,6.2407]
[1740326874425,11.11358,2795.5,2794.9,6.2407]
[1740326874626,8.25177,2795.5,2794.9,6.2407]
[1740326874826,8.25177,2795.5,2794.9,6.24069]
[1740326875028,8.25177,2795.5,2795.0,0.0429251]
[1740326875550,5.39,2795.5,2795.1,2.86212]
[1740326875769,5.39,2795.5,2795.1,3.77667651]
[1740326876050,5.39,2795.5,2795.2,0.0429251]
[1740326877020,6.1499,2795.5,2795.2,0.0429251]
[1740326877353,6.1499,2795.5,2794.9,3.0]
[1740326877544,2.86191,2795.4,2795.3,0.0429251]
[1740326877750,5.72384,2795.4,2794.9,3.0]
[1740326877954,9.01165,2795.5,2795.3,0.0429251]
[1740326878242,9.01165,2795.5,2795.4,0.0429251]
[1740326878452,9.01165,2795.5,2794.9,5.86234]
[1740326878754,9.01165,2795.5,2795.4,0.0429251]
[1740326879262,6.1499,2795.5,2795.0,5.72444]
[1740326879471,5.39,2795.5,2795.4,0.0429251]
[1740326879769,5.39,2795.5,2795.2,2.86198]
[1740326880231,5.39,2795.5,2795.4,2.86184]
[1740326881181,5.39,2795.5,2795.4,2.9047651]
[1740326881356,3.89017264,2796.1,2795.4,2.9047651]
[1740326881357,0.7599,2796.1,2795.8,2.86136]
[1740326881676,5.39,2796.2,2795.9,0.04282015]
[1740326881864,5.39,2796.2,2795.7,2.86145]
[1740326882078,5.39,2796.2,2796.0,0.04268658]
[1740326882575,5.39,2796.2,2795.8,2.86136]
[1740326882731,5.39,2796.2,2796.1,0.04268658]
[1740326883070,5.39,2796.2,2796.1,0.04245764]
[1740326883271,5.39,2796.2,2795.7,3.64573]
[1740326883475,5.39,2796.2,2796.1,0.04207247]
[1740326883877,5.39,2796.2,2795.7,0.7842]
[1740326884173,8.25102,2796.2,2796.1,0.04207247]
[1740326884329,8.25102,2796.2,2795.7,0.7842]
[1740326884529,8.25102,2796.2,2796.1,0.04207247]
[1740326884763,8.25102,2796.2,2795.7,3.64572]
[1740326884965,5.39,2796.2,2796.1,0.04207247]
[1740326885230,5.39,2796.2,2796.1,2.86112]
[1740326885429,5.4902965,2796.7,2796.5,2.86069]
[1740326885644,5.4902965,2796.7,2796.1,1.10968447]
[1740326885846,8.3508065,2796.7,2796.6,0.04171006]
[1740326886080,2.86078,2796.5,2796.0,3.0]
[1740326886279,9.1142065,2796.7,2796.0,3.0]
[1740326886682,9.1142065,2796.7,2796.2,3.0]
[1740326886977,5.4902965,2796.7,2795.8,0.7815]
[1740326887126,2.86094,2796.3,2795.8,0.7815]
[1740326887325,0.7634,2796.4,2795.8,6.64289]
[1740326887550,1.31242965,2796.6,2795.9,2.86133]
[1740326887754,1.31242965,2796.6,2796.1,2.86103]
[1740326888360,5.4902965,2796.7,2796.2,2.86095]
[1740326888536,5.4902965,2796.7,2796.4,2.86076]
[1740326888964,5.4902965,2796.7,2796.3,0.7815]
[1740326889662,5.4902965,2796.7,2796.3,3.64241]
[1740326889965,5.4902965,2796.7,2796.4,2.86076]
[1740326890160,5.4902965,2796.7,2796.5,2.8607]
[1740326890646,5.4902965,2796.7,2796.6,0.04144308]
[1740326890846,5.4902965,2796.7,2796.4,2.86072]
[1740326890991,5.4902965,2796.7,2796.6,0.04144308]
[1740326891197,5.4902965,2796.7,2796.4,2.86072]
[1740326891404,5.4902965,2796.7,2796.5,0.04144308]
[1740326892145,5.4902965,2796.7,2796.5,2.90215308]
[1740326892346,5.4902965,2796.7,2796.6,2.86061]
[1740326892546,5.4902965,2796.7,2796.5,2.90209308]
[1740326892702,5.4902965,2796.7,2796.5,2.86064]
[1740326892906,5.4902965,2796.7,2796.6,0.04144308]
[1740326893827,0.1002965,2796.7,2796.6,2.90205308]
[1740326894001,0.1002965,2796.7,2796.6,3.54335449]
[1740326894192,0.1002965,2796.7,2796.6,4.30425449]
[1740326896103,0.1002965,2796.7,2796.6,7.30425449]
[1740326900923,0.1002965,2796.7,2796.6,7.85425449]
[1740326901530,0.82942064,2796.7,2796.6,8.58652943]
[1740326904254,0.82942064,2796.7,2796.6,8.84856571]
[1740326904445,6.4e-07,2796.7,2796.6,14.07856571]
[1740326904641,0.7621,2798.0,2797.5,2.85966]
[1740326904833,2.85929,2797.9,2797.5,0.285966]
[1740326905029,2.85942,2797.8,2797.6,0.03881711]
[1740326905579,3.62136,2798.0,2797.4,2.85977]
[1740326905876,3.62134,2798.0,2797.4,2.85977]
[1740326906079,0.7621,2798.0,2797.5,2.89842711]
[1740326906448,2.85937,2797.9,2797.5,0.03881711]
[1740326906666,2.85937,2797.9,2797.3,2.8599]
[1740326906972,2.85939,2797.8,2797.6,0.03881711]
[1740326907180,2.8593,2797.9,2797.3,3.513865]
[1740326907350,2.8593,2797.9,2797.7,0.03881711]
[1740326907547,0.7621,2798.0,2797.5,2.85968]
[1740326907733,3.62129,2798.0,2797.8,0.03881711]
[1740326907929,6.43054,2798.0,2797.3,6.373675]
[1740326908135,3.57129,2798.0,2797.9,0.03881711]
[1740326908341,2.85934,2797.9,2797.3,3.513775]
[1740326908649,6.43057,2798.0,2797.4,2.89859711]
[1740326909076,2.85939,2797.8,2797.4,0.03881711]
[1740326909761,3.57129,2798.0,2797.4,0.03881711]
[1740326910381,2.85931,2797.9,2797.4,0.03881711]
[1740326910738,2.85939,2797.8,2797.4,0.03881711]
[1740326911329,2.85924,2798.0,2797.5,2.85968]
[1740326911765,5.39,2798.1,2797.9,2.85922]
[1740326912038,5.39,2798.1,2798.0,0.03825508]
[1740326912788,8.24908,2798.1,2798.0,0.03825508]
[1740326913024,5.39,2798.1,2798.0,0.03825508]
[1740326913186,5.39,2798.1,2797.8,2.85937]
[1740326913361,5.39,2798.1,2797.9,0.285937]
[1740326913682,8.24909,2798.1,2797.9,0.03825508]
[1740326913863,8.24909,2798.1,2797.6,0.8121]
[1740326914075,2.85929,2797.9,2797.6,0.8121]
[1740326914380,2.64127113,2798.4,2796.7,0.7671]
[1740326914381,3.68128,2797.4,2796.7,0.7671]
[1740326914546,2.86029,2797.0,2796.7,0.7671]
[1740326914752,2.86029,2797.0,2796.4,0.7671]
[1740326914948,2.86002,2797.2,2796.4,3.7671]
[1740326915159,2.86002,2797.2,2796.6,3.0]
[1740326915545,0.8214,2797.4,2796.4,0.7671]
[1740326915983,2.86008,2797.2,2796.6,2.86055]
[1740326916285,2.86008,2797.2,2796.7,0.286055]
[1740326916819,0.8214,2797.4,2797.0,2.81012]
[1740326917083,3.68102,2797.6,2796.9,3.62732]
[1740326917268,2.8597,2797.5,2796.9,3.62732]
[1740326917467,0.8214,2797.6,2797.1,2.86002]
[1740326917841,0.8214,2797.6,2797.1,3.0]
[1740326918062,3.68106,2797.6,2797.1,3.0]
[1740326920189,3.68106,2797.6,2797.2,0.03408886]
[1740326920669,0.8214,2797.6,2797.2,2.89408886]
[1740326920874,6.2114,2797.9,2797.4,0.7671]
[1740326921043,5.39,2797.9,2797.4,3.62682]
[1740326921387,2.85941,2797.8,2797.5,0.03395556]
[1740326922186,2.85924,2798.0,2797.5,0.03395556]
[1740326922997,5.71851,2798.0,2797.5,0.03395556]
[1740326923173,2.85918,2798.0,2797.5,0.70004012]
[1740326925501,2.8593,2797.9,2797.5,0.70004012]
[1740326925795,5.71845,2798.0,2797.5,0.70004012]
[1740326925996,2.85935,2797.9,2797.5,0.70004012]
[1740326926489,5.71844,2798.0,2797.5,0.70004012]
[1740326926660,2.85918,2798.0,2797.5,0.70004012]
[1740326926989,2.85929,2797.9,2797.5,0.70004012]
[1740326927575,2.85959,2797.6,2797.5,0.03395556]
[1740326928124,5.71912,2797.7,2797.5,0.03389842]
[1740326928264,2.85954,2797.7,2797.2,3.0]
[1740326928593,2.85954,2797.7,2797.6,0.03389842]
[1740326928880,5.71913,2797.7,2797.6,0.03389842]
[1740326929054,2.85954,2797.7,2797.2,3.0]
[1740326929395,2.85954,2797.7,2797.6,0.03389842]
[1740326930184,2.85954,2797.7,2797.2,3.0]
[1740326930384,2.85954,2797.7,2797.6,0.03397458]
[1740326930568,2.85961,2797.6,2797.2,3.0]
[1740326930769,2.85961,2797.6,2797.1,0.7567]
[1740326931084,2.85961,2797.6,2797.1,1.941394]
[1740326931669,2.85975,2797.5,2796.8,3.9189]
[1740326931877,8.03127113,2797.6,2796.8,0.7865]
[1740326932181,2.86037,2796.9,2796.5,0.7865]
[1740326932390,2.86037,2796.9,2796.6,0.391926]
[1740326932584,3.68166,2797.0,2796.6,0.391926]
[1740326932991,2.86005,2797.2,2795.5,2.86168]
[1740326932992,2.86116,2796.1,2795.5,2.86168]
[1740326933199,2.64127113,2796.3,2795.8,2.86142]
[1740326933491,5.39,2796.4,2796.0,2.86119]
[1740326933872,5.39,2796.4,2795.9,0.7865]
[1740326934053,5.39,2796.4,2796.0,2.8612]
[1740326934248,5.39,2796.4,2796.1,3.36477]
[1740326934465,9.34136737,2796.7,2796.1,6.22581]
[1740326934664,6.48085737,2796.7,2796.1,0.36477]
[1740326934885,6.48085737,2796.7,2796.2,2.86097]
[1740326935090,9.34137737,2796.7,2796.1,5.86111]
[1740326936110,9.07192,2796.7,2796.1,5.86111]
[1740326936416,2.86065,2796.6,2796.0,2.86113]
[1740326936624,2.86065,2796.6,2796.1,3.0]
[1740326936920,9.07192,2796.7,2796.1,3.0]
[1740326937727,2.86061,2796.6,2796.1,3.0]
[1740326937928,9.07192,2796.7,2796.1,3.664763]
[1740326938099,2.86064,2796.6,2796.1,3.664763]
[1740326938798,11.93252,2796.7,2796.1,3.664763]
[1740326938988,2.86064,2796.6,2796.1,3.664763]
[1740326939325,9.07192,2796.7,2796.1,3.664763]
[1740326940423,5.39,2796.7,2796.4,0.7865]
[1740326940723,8.25039,2796.9,2796.4,0.7865]
[1740326941086,5.39,2796.9,2796.8,2.86041]
[1740326941422,2.8602,2797.0,2796.4,6.64731]
[1740326941590,2.8602,2797.0,2796.5,0.950819]
[1740326942326,2.8602,2797.0,2796.5,3.811529]
[1740326942921,2.86011,2797.1,2796.5,3.811529]
[1740326943255,3.13308642,2797.2,2796.6,2.86059]
[1740326943620,3.13308642,2797.2,2796.7,2.86048]
[1740326943621,0.27305642,2797.2,2796.7,2.86048]
[1740326944044,3.13307642,2797.2,2796.7,0.6672009]
[1740326944548,3.13305642,2797.2,2796.7,3.5276409]
[1740326945446,0.27305642,2797.2,2796.7,3.5276409]
[1740326945823,2.8602,2797.0,2796.7,0.6672009]
[1740326946152,5.99314642,2797.2,2796.6,3.0]
[1740326946354,3.13306642,2797.2,2796.6,3.0]
[1740326946658,3.13306642,2797.2,2796.6,5.86061]
[1740326947242,3.13306642,2797.2,2796.4,0.7865]
[1740326947243,2.64127113,2797.1,2796.4,0.7865]
[1740326947436,2.86072,2796.5,2796.0,2.86117]
[1740326947644,6.1886,2796.7,2796.1,0.368657]
[1740326947911,5.39,2796.7,2796.4,0.8254]
[1740326948136,5.39,2796.7,2796.6,2.86061]
[1740326948339,0.27305642,2797.2,2796.8,2.86038]
[1740326948548,0.7986,2797.3,2796.8,2.86033]
[1740326948743,0.7986,2797.3,2796.8,5.72067]
[1740326948931,0.7986,2797.3,2796.9,2.86024]
[1740326949130,0.7986,2797.3,2797.0,2.86019]
[1740326950963,6.1983,2797.6,2797.1,2.86003]
[1740326951165,5.39,2797.6,2797.2,2.85996]
[1740326951371,5.39,2797.6,2797.4,2.85971]
[1740326951684,2.85922,2798.0,2797.4,2.85971]
[1740326951886,9.05741,2798.1,2797.5,2.85961]
[1740326952055,5.39,2798.1,2797.8,2.85935]
[1740326952452,5.39,2798.1,2797.7,0.8029]
[1740326953089,5.39,2798.1,2797.7,1.169141]
[1740326953294,5.39,2798.1,2797.8,2.85938]
[1740326953792,5.39,2798.1,2798.0,2.85918]